Workbook

Sheet Portada (hidden)
F1: ESTIMADOR DE EMISIONES DE AMONIACO Y DE NITRÓGENO RETENIDO EN EXPLOTACIONES GANADERAS
A7: 2018 | D7: GANADO AVIAR: AVES DE CARNE
A53: © Ministerio de Agricultura y Pesca, Alimentación y Medio Ambiente

Sheet Presentación

Sheet Instrucciones
Q11: FASE 1: ALOJAMIENTO DE ANIMALES Y EVACUACIÓN DEL ESTIÉRCOL
Q13: Jaulas no acondicionadas, estiércol no ventilado debajo
Q14: Jaulas no acondicionadas, estiércol debajo y secado
Q15: Jaulas no acondicionadas, estiércol evacuado inmediatamente con cinta a almacén cerrado
Q17: Jaulas acondicionadas con cinta y retirada de estiércol 2 veces a la semana
Q19: Jaulas acondicionadas con cinta de secado y retirada de estiércol 2 veces a la semana
Q21: Jaulas acondicionadas con cinta de secado y retirada de estiércol más de 2 veces a la semana
Q23: Jaulas con sistemas de depuración de aire
Q24: Suelo con yacija profunda
Q25: Suelo con yacija profunda, ventilación natural y sistema de bebederos sin pérdidas de agua.
Q26: Sistemas sin jaulas con aviarios con perchas y retirada de estiércol en cinta, sin secado
Q27: Aviarios con perchas y retirada de estiércol en cinta, sin secado
Q29: Aviarios con perchas y retirada de estiércol en cinta, con secado
Q30: Sistemas sin jaulas con yacija, emparrillado parcial y cintas de evacuación
Q31: Suelo con yacija, emparrillado parcial y cintas de evacuación
Q33: Suelo con yacija con secado forzado
Q34: Suelo con adición de sulfato de aluminio a la yacija
Q35: Suelo con yacija y sistemas depuración de aire
Q37: FASE 2: ALMACENAMIENTO DEL ESTIÉRCOL
Q38: Almacén abierto, sin cubrir
Q39: Almacén cubierto con materiales rígidos o flexibles
Q41: FASE 3: APLICACIÓN DEL ESTIÉRCOL AL CAMPO
Q42: Esparcido, sin enterrado
Q43: Esparcido y enterrado de forma inmediata
Q44: Incorporación al suelo con discos, de forma inmediata
Q45: Enterrado en menos de 4 horas desde el esparcido
Q46: Enterrado en más de 4 horas desde el esparcido
I48: A almacenamiento
I49: Al campo o terreno agrícola
I50: A otros usos no agrarios

Sheet E.Datos
A1: GANADO AVIAR: AVES DE CARNE
E4: IDENTIFICACION DE LA EXPLOTACION | L4: Fase 1. Alojamiento de animales y Evacuación del estiércol | T4: Proteína bruta:
L5: Si se aplica un mismo sistema de alojamiento para todos los animales, marcar la misma opción en todas las categorías. En caso contrario, diferenciar por categoría. | T5: Marcar si la proteina bruta que se suministra habitualmente en la ración está o no dentro de los rangos indicados, en unidades de Kg de P.B. por animal y año.
B7: EXPLOTACIÓN | E7: NOMBRE
T8: Aportación de paja, serrín, virutas u otros materiales para cama:
E9: Nº REGISTRO REGA | L9: Fase 2. Almacenamiento del estiércol en la granja
T10: Indicar la cantidad total de estos materiales, expresada en kg, que se utiliza por término medio por plaza y año.
E11: RESPONSABLE | L11: Elegir el sistema empleado, ya sea dentro o fuera de la explotación, diferenciando si procede por categoría animal.
E13: MODULO/NAVE | L13: Fase 3. Aplicación de purines al campo | T13: Destino del estiércol:
E15: AÑO DE CONSTRUCCIÓN | L15: Elegir el sistema empleado en la explotación, diferenciando si procede por categoría animal. | T15: Indicar el destino del estiércol procedente de la explotación: el que se recoge en la nave de alojamiento y el que se saca del almacén de estiércol.
E16: AÑO DE ÚLTIMA REFORMA | L16: Si el estiércol se saca fuera de la explotación, marque el sistema que cree se aplica en el lugar de destino.
E18: LOCALIZACION | L18: De haber varios sistemas, elegir por categoría animal el que corresponda o el más parecido. | T18: En el caso de haber varios destinos posibles, indique el mayoritario.
T19: Sólo si procede, diferenciar por categoría animal.
B22: A N I M A L E S | C22: CATEGORIAS PRODUCTIVAS | E22: Nº PLAZAS | G22: PROTEINA BRUTA ALIMENTARIA % PB ración | H22: SÍ / NO | J22: ALOJAMIENTO DE ANIMALES Y EVACUACION DEL ESTIERCOL | L22: APORTACION DE PAJA, SERRIN, VIRUTAS,… | N22: DESTINO DEL ESTIERCOL | R22: ALMACENAMIENTO DEL ESTIERCOL | V22: DESTINO DEL ESTIERCOL TRAS ALMACENAMIENTO | X22: APLICACIÓN DEL ESTIERCOL AL CAMPO
L23: (kg totales/año) | N23: A LA SALIDA DE LA NAVE | P23: A LA SALIDA DEL PATIO
C25: Broilers | G25: 21,65-21,80 | H25: SÍ | J25: Suelo con yacija profunda | L25: 0 | N25: A otros usos no agrarios | P25: A otros usos no agrarios | R25: Almacén abierto, sin cubrir | V25: A otros usos no agrarios | X25: Esparcido, sin enterrado
C27: Pollitas de recría carne | G27: 16,75-16,85 | H27: SÍ | J27: Suelo con yacija profunda | L27: 0 | N27: A almacenamiento | P27: A almacenamiento | R27: Almacén abierto, sin cubrir | V27: Al campo o terreno agrícola | X27: Esparcido, sin enterrado
C29: Gallinas reproductoras carne | G29: 15,87-16,00 | H29: SÍ | J29: Suelo con yacija profunda | L29: 0 | N29: A almacenamiento | P29: A almacenamiento | R29: Almacén abierto, sin cubrir | V29: Al campo o terreno agrícola | X29: Esparcido, sin enterrado
C31: TOTAL ANIMALES EN GRANJA | E31: =IF(SUM(E25:E30)>0,SUM(E25:E30),"") -> 

Sheet E.Datos2
B2: IDENTIFICACIÓN PROVINCIA
B4: Provincia de ubicación | D4: Provincia
B6: Persona que realiza la declaración
B7: Nombre y apellidos
B8: Teléfono
B9: Correo electrónico
B11: Observaciones
A18: ANIMALES | B18: REGISTRO DE ANIMALES
B20: AVES DE CORRAL | E20: Nº de Plazas
B21: Pollos de carne (Cría en suelo con yacija)
D22: Total | E22: =IF(E21=0,"",E21) -> 

Sheet Metano (hidden)
B2: CÁLCULO SOBRE LAS EMISIÓNES EN AVES DE CORRAL
B4: EMISIÓN DE METANO POR GESTIÓN DE ESTIÉRCOL
B7: Provincia | C7: Factor de Conversión* | E7: Provincia | F7: =E.Datos2!D4 -> Provincia
B8: Valencia | C8: 0.10344 | E8: Factor de emisión | F8: =IF(F7="Provincia",0,VLOOKUP(F7,$B$8:$C$10,2,0)) -> 0
B9: Alicante | C9: 0.10378 | E9: nº de plazas | F9: =E.Datos2!E22 -> 
B10: Castellón de la Plana | C10: 0.09932 | E10: Emisión de CH4 | F10: =F8*F9 -> 
B11: * El factor de conversión para el contaminante CH4. Cambia dependiendo de la provincia de ubicación de la instalación

Sheet Resultados PRTR
B2: EMISIONES A NOTIFICAR EN PRTR-ESPAÑA
B3: Sustancia | C3: kg/año
B4: Amoniaco (NH3) | C4: =IF(Calculos!BM7=0,"",Calculos!BM7) -> 
B5: Óxido nitroso (N2O) | C5: =IF(Calculos!AQ7=0,"",Calculos!AQ7) -> 
B6: Óxidos de nitrógeno (NOx) | C6: =IF(Calculos!AS7=0,"",Calculos!AS7) -> 
B7: Metano (CH4) | C7: =IFERROR(IF(Metano!F10=0,"",Metano!F10),"") -> 
B12: Estas emisiones deben notificarse en la plataforma PRTR- España con:
B14: * Método de otención del dato: "Calculado".
B15: * Origen del método: "SSC".
B16: * Método de cálculo: "Otros". Estimador de emisiones de amoniaco y de nitrógeno en explotaciones avícolas de carne-MAPA.
B17: * Fuentes o referencias: "Otros". Estimador de emisiones de amoniaco y de nitrógeno en explotaciones avícolas de carne-MAPA.
B19: En CH4 tanto en método de cálculo como fuentes / referencias debe indicar:
B21: * Cuadro de cálculo de emisiones de gases de sector ganadero en relación con la directiva IPPC.

Sheet Result. N (hidden)
C1: GANADO AVIAR: AVES DE CARNE
F4: IDENTIFICACION DE LA EXPLOTACION
F5: NOMBRE
F7: Nº REGISTRO REGA
F9: RESPONSABLE
F11: MODULO/NAVE
F13: AÑO DE CONSTRUCCIÓN
F14: AÑO ÚLTIMA REFORMA
F16: LOCALIZACION
D20: RESULTADOS DE EXPLOTACIÓN
E22: Emisiones en NAVE | G22: EMISIONES TOTALES de Nitrógeno (kg N / año)
F23: Referencia* | G23: Explotación | K23: N-TOTAL | L23: Referencia*
E24: N - NH3 | F24: N - NH3 | G24: N - NH3 | H24: N - NOx | I24: N - N2O | J24: N - N2 | K24: Emitido | L24: N-TOTAL
C25: Total granja | E25: =Calculos!AC7 -> 0 | F25: =Calculos!AC21 -> 0 | G25: =Calculos!BH7 -> 0 | H25: =Calculos!BK7 -> 0 | I25: =Calculos!BI7 -> 0 | J25: =Calculos!BJ7 -> 0 | K25: =SUM(G25:J25) -> 0 | L25: =Calculos!BL21 -> 0
C26: Promedio/plaza *año | E26: =Calculos!AC7/Calculos!C7 ->  | F26: =Calculos!AC21/Calculos!C21 ->  | G26: =G25/Calculos!C7 ->  | H26: =H25/Calculos!C7 ->  | I26: =I25/Calculos!C7 ->  | J26: =J25/Calculos!C7 ->  | K26: =K25/Calculos!$C$7 ->  | L26: =L25/Calculos!$C$7 -> 
C27: % N emitido sobre N excretado | G27: =G25/G34*100 ->  | H27: =H25/G34*100 ->  | I27: =I25/G34*100 ->  | J27: =J25/G34*100 ->  | K27: =K25*100/G34 ->  | L27: =L25*100/G34 -> 
C28: % N respecto a situación de referencia | G28: =G25*100/Calculos!BH21 ->  | H28: =H25*100/Calculos!BK21 ->  | I28: =I25*100/Calculos!BI21 ->  | J28: =J25*100/Calculos!BJ21 ->  | K28: =K25*100/L25 -> 
D29: * La situación de referencia corresponden al empleo de las técnicas menos eficientes o más contaminantes.
G31: N excretado | I31: N permanece en suelo
G32: Explotación | K32: Referencia*
G33: (kg N / año) | I33: (kg N / año) | K33: N
D34: Total granja | G34: =Calculos!H7+(Calculos!E7*Calculos!M7*Calculos!AD7) ->  | I34: =Calculos!BD7 -> 0 | K34: =Calculos!BD21 -> 0
D35: kg N excretado/plaza*año | G35: =G34/Calculos!C7 ->  | I35: =I34/Calculos!C7 ->  | K35: =K34/Calculos!C7 -> 
D36: % N sobre N excretado | I36: =I34/G34*100 ->  | K36: =K34/G34*100 -> 
D37: * La situación de referencia corresponden al empleo de las técnicas menos eficientes o más contaminantes.

Sheet Calculos (hidden)
A1: SPECIE | B1: CAT_AA | C1: N_PP | D1: AA / PP | E1: N_AA | F1: N excreted | K1: N Distribution | N1: GRAZING | T1: YARD_solid | Z1: BUILD | AD1: STRAW_exBUILD_solid (kgN) | AH1: DISTRIBUTION_exBUILD_solid | AK1: DISTRIBUCION_YARD_solid | AN1: STORE_solid (kg N) | AW1: DISTRIBUCION_STORE_solid | AY1: FIELD_solid | BD1: FIELD TOTAL | BF1: OTHERS | BH1: EE N-NH3 TOTAL | BI1: EE N-N2O | BJ1: EE N-N2 | BK1: EE N-NOx | BL1: EE N-TOTAL | BM1: EE-NH3
F2: Nex_T / PP | G2: Nex_Urine | H2: Nex_T | I2: x_TAN-T | J2: TAN-T | K2: x_GRAZ | L2: x_YARD | M2: x_BUILD | N2: N_GRAZ | O2: TAN_GRAZ | P2: EE_GRAZ | Q2: N_ret_GRAZ | R2: TAN_GRAZING_solid | S2: CHECK-1 | T2: N_YARD_solid | U2: TAN_YARD_solid | V2: EE_YARD_solid | W2: N_ret_YARD | X2: TAN_YARD_solid | Y2: CHECK-2 | Z2: N_BUILD_solid | AA2: TAN_BUILD_solid | AB2: CHECK-3 | AC2: EE_BUILD_solid | AD2: N_STRAW | AE2: N_exBUILD_solid | AF2: TAN_exBUILD_solid | AG2: CHECK-4 | AH2: x_exBUILD_solid-to-STORE_solid | AI2: x_exBUILD_solid-to-FIELD_solid | AJ2: x_exBUILD_solid-to-OTHER | AK2: x_YARD-to-STORE_solid | AL2: x_YARD-to-FIELD_solid | AM2: x_YARD-to-OTHERS | AN2: N_STORE_solid | AO2: TAN_STORE_solid | AP2: EE_NH3_STORE_solid | AQ2: EE_N2O_STORE_solid | AR2: EE_N2_STORE_solid | AS2: EE_NOx_STORE_solid | AT2: N_ex_STORE_solid | AU2: TAN_ex_STORE_solid | AV2: CHECK-5 | AW2: x_STORE_solid-to-FIELD_solid | AX2: x_STORE_slurry-to-OTHERS | AY2: N_FIELD_solid | AZ2: TAN_FIELD_solid | BA2: EE_FIELD_solid | BB2: N_ex_FIELD_solid | BC2: TAN_ex_FIELD_solid | BD2: N_ex_SFIELD_total | BE2: TAN_ex_FIELD_total | BF2: N_OTHERS_solid | BG2: TAN_total | BH2: (PM=17) | BI2: (PM=44,03) | BJ2: (PM=28,01) | BK2: (PM=30,01) | BL2: kg N | BM2: kg NH3 | BN2: CHECK
C3: nº plazas | D3: nº an. / PP | E3: nº animals | F3: kg N/PP | G3: kg N-NH3/PP | H3: kg N | I3: kg N-TAN/PP | J3: kg N-TAN | N3: Kg N | O3: Kg N-NH3 | P3: kg N-NH3 | Q3: Kg N | R3: kg N-NH3 | T3: Kg N | U3: Kg N-NH3 | V3: kg N-NH3 | W3: Kg N | X3: kg N-NH3 | Z3: Kg N | AA3: kg N-NH3 | AC3: kg N-NH3 | AD3: kg N / PP | AE3: N_ret_BUILD_solid | AF3: TAN_ret_BUILD_solid | AP3: kg N-NH3 | AQ3: kg N2O | AR3: kg N2 | AS3: kg NOx | AT3: N_ret_STORE_solid | AU3: TAN_ret_STORE_solid | AY3: kg N | AZ3: kg | BA3: kg N-NH3 | BB3: N_ret_FIELD_solid | BC3: TAN_ret_FIELD_solid | BD3: N_ret_FIELD_total | BE3: TAN_ret_FIELD_total | BF3: kg N | BG3: kg | BH3: kg N | BI3: kg N | BJ3: kg N | BK3: kg N
A4: AVES CARNE | B4: Broilers | C4: =E.Datos!E25 -> 0 | D4: 5.79 | E4: =C4*D4 -> 0 | F4: 0.44 | G4: =0.110667 -> 0.110667 | H4: =C4*F4 -> 0 | J4: =G4*C4 -> 0 | K4: ='F.Dist.'!E4 -> 0 | L4: ='F.Dist.'!F4 -> 0 | M4: ='F.Dist.'!G4 -> 1 | N4: =H4*K4 -> 0 | O4: =J4*K4 -> 0 | P4: =O4*'F.EE.'!E3 -> 0 | Q4: =N4-P4 -> 0 | R4: =O4-P4 -> 0 | S4: =(K4*J4)-(P4+R4) -> 0 | T4: =H4*L4 -> 0 | U4: =J4*L4 -> 0 | V4: =U4*'F.EE.'!H3 -> 0 | W4: =T4-V4 -> 0 | X4: =U4-V4 -> 0 | Y4: =W4+V4+Q4+P4-(H4*K4+H4*L4) -> 0 | Z4: =H4*M4 -> 0 | AA4: =J4*M4 -> 0 | AB4: =(AA4)-J4*M4 -> 0 | AC4: =AA4*'F.EE.'!K3 -> 0 | AD4: ='F.Dist.'!J4 -> 0 | AE4: =(C4*AD4*M4)+Z4-AC4 -> 0 | AF4: =(AA4-AC4)*(1-0.0067) -> 0 | AG4: =(AE4+W4+Q4)+(P4+V4+AC4)-(H4+AD4*C4*M4) -> 0 | AH4: ='F.Dist.'!K4 -> 0 | AI4: ='F.Dist.'!L4 -> 0 | AJ4: ='F.Dist.'!M4 -> 1 | AK4: ='F.Dist.'!O4 -> 0 | AL4: ='F.Dist.'!P4 -> 0 | AM4: ='F.Dist.'!Q4 -> 1 | AN4: =AE4*AH4+W4*AK4 -> 0 | AO4: =AF4*AH4+X4*AK4 -> 0 | AP4: =AO4*'F.EE.'!N3 -> 0 | AQ4: =AO4*'F.EE.'!S3 -> 0 | AR4: =AO4*'F.EE.'!T3 -> 0 | AS4: =AO4*'F.EE.'!U3 -> 0 | AT4: =AN4-AP4-AQ4*(28/44)-AR4-AS4*(14/46) -> 0 | AU4: =AO4-AP4-AQ4*(28/44)-AR4-AS4*(14/46) -> 0 | AV4: =(AT4+AP4+AR4+AQ4*28/44+AS4*14/46)-AN4 -> 0 | AW4: ='F.Dist.'!S4 -> 0 | AX4: ='F.Dist.'!T4 -> 1 | AY4: =AT4*AW4+AE4*AI4+W4*AL4 -> 0 | AZ4: =AU4*AW4+AF4*AI4+X4*AL4 -> 0 | BA4: =AZ4*'F.EE.'!Q3 -> 0 | BB4: =AY4-BA4 -> 0 | BC4: =AZ4-BA4 -> 0 | BD4: =BB4+Q4 -> 0 | BE4: =BC4+R4 -> 0 | BF4: =W4*AM4+AT4*AX4+AE4*AJ4 -> 0 | BG4: =X4*AM4+AU4*AX4+AF4*AJ4 -> 0 | BH4: =BA4+AP4+AC4+V4+P4 -> 0 | BI4: =AQ4*28/44 -> 0 | BJ4: =AR4 -> 0 | BK4: =AS4*14/46 -> 0 | BL4: =SUM(BH4:BK4) -> 0 | BM4: =BH4*17/14 -> 0 | BN4: =H4+(AD4*C4*M4)-(BF4+BL4+BD4) -> 0
A5: AVES CARNE | B5: Pollitas de recría carne | C5: =E.Datos!E27 -> 0 | D5: 2 | E5: =C5*D5 -> 0 | F5: 0.306 | G5: =0.064583 -> 0.064583 | H5: =C5*F5 -> 0 | J5: =G5*C5 -> 0 | K5: ='F.Dist.'!E5 -> 0 | L5: ='F.Dist.'!F5 -> 0 | M5: ='F.Dist.'!G5 -> 1 | N5: =H5*K5 -> 0 | O5: =J5*K5 -> 0 | P5: =O5*'F.EE.'!E4 -> 0 | Q5: =N5-P5 -> 0 | R5: =O5-P5 -> 0 | S5: =(K5*J5)-(P5+R5) -> 0 | T5: =H5*L5 -> 0 | U5: =J5*L5 -> 0 | V5: =U5*'F.EE.'!H4 -> 0 | W5: =T5-V5 -> 0 | X5: =U5-V5 -> 0 | Y5: =W5+V5+Q5+P5-(H5*K5+H5*L5) -> 0 | Z5: =H5*M5 -> 0 | AA5: =J5*M5 -> 0 | AB5: =(AA5)-J5*M5 -> 0 | AC5: =AA5*'F.EE.'!K4 -> 0 | AD5: ='F.Dist.'!J5 -> 0 | AE5: =(C5*AD5*M5)+Z5-AC5 -> 0 | AF5: =(AA5-AC5)*(1-0.0067) -> 0 | AG5: =(AE5+W5+Q5)+(P5+V5+AC5)-(H5+AD5*C5*M5) -> 0 | AH5: ='F.Dist.'!K5 -> 1 | AI5: ='F.Dist.'!L5 -> 0 | AJ5: ='F.Dist.'!M5 -> 0 | AK5: ='F.Dist.'!O5 -> 1 | AL5: ='F.Dist.'!P5 -> 0 | AM5: ='F.Dist.'!Q5 -> 0 | AN5: =AE5*AH5+W5*AK5 -> 0 | AO5: =AF5*AH5+X5*AK5 -> 0 | AP5: =AO5*'F.EE.'!N4 -> 0 | AQ5: =AO5*'F.EE.'!S4 -> 0 | AR5: =AO5*'F.EE.'!T4 -> 0 | AS5: =AO5*'F.EE.'!U4 -> 0 | AT5: =AN5-AP5-AQ5*(28/44)-AR5-AS5*(14/46) -> 0 | AU5: =AO5-AP5-AQ5*(28/44)-AR5-AS5*(14/46) -> 0 | AV5: =(AT5+AP5+AR5+AQ5*28/44+AS5*14/46)-AN5 -> 0 | AW5: ='F.Dist.'!S5 -> 1 | AX5: ='F.Dist.'!T5 -> 0 | AY5: =AT5*AW5+AE5*AI5+W5*AL5 -> 0 | AZ5: =AU5*AW5+AF5*AI5+X5*AL5 -> 0 | BA5: =AZ5*'F.EE.'!Q4 -> 0 | BB5: =AY5-BA5 -> 0 | BC5: =AZ5-BA5 -> 0 | BD5: =BB5+Q5 -> 0 | BE5: =BC5+R5 -> 0 | BF5: =W5*AM5+AT5*AX5+AE5*AJ5 -> 0 | BG5: =X5*AM5+AU5*AX5+AF5*AJ5 -> 0 | BH5: =BA5+AP5+AC5+V5+P5 -> 0 | BI5: =AQ5*28/44 -> 0 | BJ5: =AR5 -> 0 | BK5: =AS5*14/46 -> 0 | BL5: =SUM(BH5:BK5) -> 0 | BM5: =BH5*17/14 -> 0 | BN5: =H5+(AD5*C5*M5)-(BF5+BL5+BD5) -> 0
A6: AVES CARNE | B6: Gallinas reproductoras carne | C6: =E.Datos!E29 -> 0 | D6: 1 | E6: =C6*D6 -> 0 | F6: 0.747 | G6: =0.148411 -> 0.148411 | H6: =C6*F6 -> 0 | J6: 0 | K6: ='F.Dist.'!E6 -> 0 | L6: ='F.Dist.'!F6 -> 0 | M6: ='F.Dist.'!G6 -> 1 | N6: =H6*K6 -> 0 | O6: =J6*K6 -> 0 | P6: =O6*'F.EE.'!E5 -> 0 | Q6: =N6-P6 -> 0 | R6: =O6-P6 -> 0 | S6: =(K6*J6)-(P6+R6) -> 0 | T6: =H6*L6 -> 0 | U6: =J6*L6 -> 0 | V6: =U6*'F.EE.'!H5 -> 0 | W6: =T6-V6 -> 0 | X6: =U6-V6 -> 0 | Y6: =W6+V6+Q6+P6-(H6*K6+H6*L6) -> 0 | Z6: =H6*M6 -> 0 | AA6: =J6*M6 -> 0 | AB6: 0 | AC6: =AA6*'F.EE.'!K5 -> 0 | AD6: ='F.Dist.'!J6 -> 0 | AE6: =(C6*AD6*M6)+Z6-AC6 -> 0 | AF6: =(AA6-AC6)*(1-0.0067) -> 0 | AG6: =(AE6+W6+Q6)+(P6+V6+AC6)-(H6+AD6*C6*M6) -> 0 | AH6: ='F.Dist.'!K6 -> 1 | AI6: ='F.Dist.'!L6 -> 0 | AJ6: ='F.Dist.'!M6 -> 0 | AK6: ='F.Dist.'!O6 -> 1 | AL6: ='F.Dist.'!P6 -> 0 | AM6: ='F.Dist.'!Q6 -> 0 | AN6: =AE6*AH6+W6*AK6 -> 0 | AO6: 0 | AP6: =AO6*'F.EE.'!N5 -> 0 | AQ6: =AO6*'F.EE.'!S5 -> 0 | AR6: =AO6*'F.EE.'!T5 -> 0 | AS6: =AO6*'F.EE.'!U5 -> 0 | AT6: =AN6-AP6-AQ6*(28/44)-AR6-AS6*(14/46) -> 0 | AU6: =AO6-AP6-AQ6*(28/44)-AR6-AS6*(14/46) -> 0 | AV6: =(AT6+AP6+AR6+AQ6*28/44+AS6*14/46)-AN6 -> 0 | AW6: ='F.Dist.'!S6 -> 1 | AX6: ='F.Dist.'!T6 -> 0 | AY6: =AT6*AW6+AE6*AI6+W6*AL6 -> 0 | AZ6: 0 | BA6: =AZ6*'F.EE.'!Q5 -> 0 | BB6: =AY6-BA6 -> 0 | BC6: =AZ6-BA6 -> 0 | BD6: =BB6+Q6 -> 0 | BE6: 0 | BF6: 0 | BG6: 0 | BH6: 0 | BI6: 0 | BJ6: 0 | BK6: 0 | BL6: =SUM(BH6:BK6) -> 0 | BM6: =BH6*17/14 -> 0 | BN6: =H6+(AD6*C6*M6)-(BF6+BL6+BD6) -> 0
A7: TOTALS | C7: =SUM(C4:C6) -> 0 | E7: =SUM(E4:E6) -> 0 | H7: =SUM(H4:H6) -> 0 | J7: =SUM(J4:J6) -> 0 | N7: =SUM(N4:N6) -> 0 | O7: 0 | P7: 0 | Q7: 0 | R7: 0 | S7: 0 | T7: 0 | U7: 0 | V7: 0 | W7: 0 | X7: 0 | Y7: 0 | Z7: 0 | AA7: 0 | AB7: 0 | AC7: =SUM(AC4:AC6) -> 0 | AD7: =(C4*AD4+C5*AD5+C6*AD6)/C7 ->  | AE7: 0 | AF7: 0 | AG7: =SUM(AG4:AG6) -> 0 | AN7: =SUM(AN4:AN6) -> 0 | AO7: 0 | AP7: 0 | AQ7: 0 | AR7: 0 | AS7: 0 | AT7: 0 | AU7: 0 | AY7: =SUM(AY4:AY6) -> 0 | AZ7: 0 | BA7: 0 | BB7: 0 | BC7: 0 | BD7: =SUM(BD4:BD6) -> 0 | BE7: =SUM(BE4:BE6) -> 0 | BF7: 0 | BG7: 0 | BH7: =SUM(BH4:BH6) -> 0 | BI7: 0 | BJ7: 0 | BK7: 0 | BL7: =SUM(BH7:BK7) -> 0 | BM7: =BH7*17/14 -> 0 | BN7: =SUM(BN4:BN6) -> 0
A15: SPECIE | B15: CAT_AA | C15: N_PP | D15: AA / PP | E15: N_AA | F15: N excreted | K15: N Distribution | N15: GRAZING | T15: YARD_solid | Z15: BUILD | AD15: STRAW_exBUILD_solid (kgN) | AH15: DISTRIBUTION_exBUILD_solid | AK15: DISTRIBUCION_YARD_solid | AN15: STORE_solid (kg N) | AW15: DISTRIBUCION_STORE_solid | AY15: FIELD_solid | BD15: FIELD TOTAL | BF15: OTHERS | BH15: EE N-NH3 TOTAL | BI15: EE N-N2O | BJ15: EE N-N2 | BK15: EE N-NOx | BL15: EE N-TOTAL | BM15: EE-NH3
F16: Nex_T / PP | G16: Nex_Urine | H16: Nex_T | I16: x_TAN-T | J16: TAN-T | K16: x_GRAZ | L16: x_YARD | M16: x_BUILD | N16: N_GRAZ | O16: TAN_GRAZ | P16: EE_GRAZ | Q16: N_ret_GRAZ | R16: TAN_GRAZING_solid | S16: CHECK-1 | T16: N_YARD_solid | U16: TAN_YARD_solid | V16: EE_YARD_solid | W16: N_ret_YARD | X16: TAN_YARD_solid | Y16: CHECK-2 | Z16: N_BUILD_solid | AA16: TAN_BUILD_solid | AB16: CHECK-3 | AC16: EE_BUILD_solid | AD16: N_STRAW | AE16: N_exBUILD_solid | AF16: TAN_exBUILD_solid | AG16: CHECK-4 | AH16: x_exBUILD_solid-to-STORE_solid | AI16: x_exBUILD_solid-to-FIELD_solid | AJ16: x_exBUILD_solid-to-OTHER | AK16: x_YARD-to-STORE_solid | AL16: x_YARD-to-FIELD_solid | AM16: x_YARD-to-OTHERS | AN16: N_STORE_solid | AO16: TAN_STORE_solid | AP16: EE_NH3_STORE_solid | AQ16: EE_N2O_STORE_solid | AR16: EE_N2_STORE_solid | AS16: EE_NOx_STORE_solid | AT16: N_ex_STORE_solid | AU16: TAN_ex_STORE_solid | AV16: CHECK-5 | AW16: x_STORE_solid-to-FIELD_solid | AX16: x_STORE_slurry-to-OTHERS | AY16: N_FIELD_solid | AZ16: TAN_FIELD_solid | BA16: EE_FIELD_solid | BB16: N_ex_FIELD_solid | BC16: TAN_ex_FIELD_solid | BD16: N_ex_SFIELD_total | BE16: TAN_ex_FIELD_total | BF16: N_OTHERS_solid | BG16: TAN_total | BH16: (PM=17) | BI16: (PM=44,03) | BJ16: (PM=28,01) | BK16: (PM=30,01) | BL16: kg N | BM16: kg NH3 | BN16: CHECK
C17: nº plazas | D17: nº an. / PP | E17: nº animals | F17: kg N/PP | G17: kg N-NH3/PP | H17: kg N | I17: kg N-TAN/PP | J17: kg N-TAN | N17: Kg N | O17: Kg N-NH3 | P17: kg N-NH3 | Q17: Kg N | R17: kg N-NH3 | T17: Kg N | U17: Kg N-NH3 | V17: kg N-NH3 | W17: Kg N | X17: kg N-NH3 | Z17: Kg N | AA17: kg N-NH3 | AC17: kg N-NH3 | AD17: kg N / PP | AE17: N_ret_BUILD_solid | AF17: TAN_ret_BUILD_solid | AP17: kg N-NH3 | AQ17: kg N2O | AR17: kg N2 | AS17: kg NOx | AT17: N_ret_STORE_solid | AU17: TAN_ret_STORE_solid | AY17: kg N | AZ17: kg | BA17: kg N-NH3 | BB17: N_ret_FIELD_solid | BC17: TAN_ret_FIELD_solid | BD17: N_ret_FIELD_total | BE17: TAN_ret_FIELD_total | BF17: kg N | BG17: kg | BH17: kg N | BI17: kg N | BJ17: kg N | BK17: kg N
A18: AVES CARNE | B18: Broilers | C18: =E.Datos!E25 -> 0 | D18: 5.79 | E18: =C18*D18 -> 0 | F18: 0.44 | G18: =0.110667 -> 0.110667 | H18: =C18*F18 -> 0 | J18: =G18*C18 -> 0 | K18: ='F.Dist.'!E4 -> 0 | L18: ='F.Dist.'!F4 -> 0 | M18: ='F.Dist.'!G4 -> 1 | N18: =H18*K18 -> 0 | O18: =J18*K18 -> 0 | P18: =O18*'F.EE.'!C3 -> 0 | Q18: =N18-P18 -> 0 | R18: =O18-P18 -> 0 | S18: =(K18*J18)-(P18+R18) -> 0 | T18: =H18*L18 -> 0 | U18: =J18*L18 -> 0 | V18: =U18*'F.EE.'!F3 -> 0 | W18: =T18-V18 -> 0 | X18: =U18-V18 -> 0 | Y18: =W18+V18+Q18+P18-(H18*K18+H18*L18) -> 0 | Z18: =H18*M18 -> 0 | AA18: =J18*M18 -> 0 | AB18: =(AA18)-J18*M18 -> 0 | AC18: =AA18*'F.EE.'!I3 -> 0 | AD18: ='F.Dist.'!J4 -> 0 | AE18: =(C18*AD18*M18)+Z18-AC18 -> 0 | AF18: =(AA18-AC18)*(1-0.0067) -> 0 | AG18: =(AE18+W18+Q18)+(P18+V18+AC18)-(H18+AD18*C18*M18) -> 0 | AH18: ='F.Dist.'!K4 -> 0 | AI18: ='F.Dist.'!L4 -> 0 | AJ18: ='F.Dist.'!M4 -> 1 | AK18: ='F.Dist.'!O4 -> 0 | AL18: ='F.Dist.'!P4 -> 0 | AM18: ='F.Dist.'!Q4 -> 1 | AN18: =AE18*AH18+W18*AK18 -> 0 | AO18: =AF18*AH18+X18*AK18 -> 0 | AP18: =AO18*'F.EE.'!L3 -> 0 | AQ18: =AO18*'F.EE.'!S3 -> 0 | AR18: =AO18*'F.EE.'!T3 -> 0 | AS18: =AO18*'F.EE.'!U3 -> 0 | AT18: =AN18-AP18-AQ18*(28/44)-AR18-AS18*(14/46) -> 0 | AU18: =AO18-AP18-AQ18*(28/44)-AR18-AS18*(14/46) -> 0 | AV18: =(AT18+AP18+AR18+AQ18*28/44+AS18*14/46)-AN18 -> 0 | AW18: ='F.Dist.'!S4 -> 0 | AX18: ='F.Dist.'!T4 -> 1 | AY18: =AT18*AW18+AE18*AI18+W18*AL18 -> 0 | AZ18: =AU18*AW18+AF18*AI18+X18*AL18 -> 0 | BA18: =AZ18*'F.EE.'!O3 -> 0 | BB18: =AY18-BA18 -> 0 | BC18: =AZ18-BA18 -> 0 | BD18: =BB18+Q18 -> 0 | BE18: =BC18+R18 -> 0 | BF18: =W18*AM18+AT18*AX18+AE18*AJ18 -> 0 | BG18: =X18*AM18+AU18*AX18+AF18*AJ18 -> 0 | BH18: =BA18+AP18+AC18+V18+P18 -> 0 | BI18: =AQ18*28/44 -> 0 | BJ18: =AR18 -> 0 | BK18: =AS18*14/46 -> 0 | BL18: =SUM(BH18:BK18) -> 0 | BM18: =BH18*17/14 -> 0 | BN18: =H18+(AD18*C18*M18)-(BF18+BL18+BD18) -> 0
A19: AVES CARNE | B19: Pollitas de recría carne | C19: =E.Datos!E27 -> 0 | D19: 2 | E19: =C19*D19 -> 0 | F19: 0.306 | G19: =0.064583 -> 0.064583 | H19: =C19*F19 -> 0 | J19: =G19*C19 -> 0 | K19: ='F.Dist.'!E5 -> 0 | L19: ='F.Dist.'!F5 -> 0 | M19: ='F.Dist.'!G5 -> 1 | N19: =H19*K19 -> 0 | O19: =J19*K19 -> 0 | P19: =O19*'F.EE.'!C4 -> 0 | Q19: =N19-P19 -> 0 | R19: =O19-P19 -> 0 | S19: =(K19*J19)-(P19+R19) -> 0 | T19: =H19*L19 -> 0 | U19: =J19*L19 -> 0 | V19: =U19*'F.EE.'!F4 -> 0 | W19: =T19-V19 -> 0 | X19: =U19-V19 -> 0 | Y19: =W19+V19+Q19+P19-(H19*K19+H19*L19) -> 0 | Z19: =H19*M19 -> 0 | AA19: =J19*M19 -> 0 | AB19: =(AA19)-J19*M19 -> 0 | AC19: =AA19*'F.EE.'!I4 -> 0 | AD19: ='F.Dist.'!J5 -> 0 | AE19: =(C19*AD19*M19)+Z19-AC19 -> 0 | AF19: =(AA19-AC19)*(1-0.0067) -> 0 | AG19: =(AE19+W19+Q19)+(P19+V19+AC19)-(H19+AD19*C19*M19) -> 0 | AH19: ='F.Dist.'!K5 -> 1 | AI19: ='F.Dist.'!L5 -> 0 | AJ19: ='F.Dist.'!M5 -> 0 | AK19: ='F.Dist.'!O5 -> 1 | AL19: ='F.Dist.'!P5 -> 0 | AM19: ='F.Dist.'!Q5 -> 0 | AN19: =AE19*AH19+W19*AK19 -> 0 | AO19: =AF19*AH19+X19*AK19 -> 0 | AP19: =AO19*'F.EE.'!L4 -> 0 | AQ19: =AO19*'F.EE.'!S4 -> 0 | AR19: =AO19*'F.EE.'!T4 -> 0 | AS19: =AO19*'F.EE.'!U4 -> 0 | AT19: =AN19-AP19-AQ19*(28/44)-AR19-AS19*(14/46) -> 0 | AU19: =AO19-AP19-AQ19*(28/44)-AR19-AS19*(14/46) -> 0 | AV19: =(AT19+AP19+AR19+AQ19*28/44+AS19*14/46)-AN19 -> 0 | AW19: ='F.Dist.'!S5 -> 1 | AX19: ='F.Dist.'!T5 -> 0 | AY19: =AT19*AW19+AE19*AI19+W19*AL19 -> 0 | AZ19: =AU19*AW19+AF19*AI19+X19*AL19 -> 0 | BA19: =AZ19*'F.EE.'!O4 -> 0 | BB19: =AY19-BA19 -> 0 | BC19: =AZ19-BA19 -> 0 | BD19: =BB19+Q19 -> 0 | BE19: =BC19+R19 -> 0 | BF19: =W19*AM19+AT19*AX19+AE19*AJ19 -> 0 | BG19: =X19*AM19+AU19*AX19+AF19*AJ19 -> 0 | BH19: =BA19+AP19+AC19+V19+P19 -> 0 | BI19: =AQ19*28/44 -> 0 | BJ19: =AR19 -> 0 | BK19: =AS19*14/46 -> 0 | BL19: =SUM(BH19:BK19) -> 0 | BM19: =BH19*17/14 -> 0 | BN19: =H19+(AD19*C19*M19)-(BF19+BL19+BD19) -> 0
A20: AVES CARNE | B20: Gallinas reproductoras carne | C20: =E.Datos!E29 -> 0 | D20: 1 | E20: =C20*D20 -> 0 | F20: 0.747 | G20: =0.148411 -> 0.148411 | H20: =C20*F20 -> 0 | J20: 0 | K20: ='F.Dist.'!E6 -> 0 | L20: ='F.Dist.'!F6 -> 0 | M20: ='F.Dist.'!G6 -> 1 | N20: =H20*K20 -> 0 | O20: =J20*K20 -> 0 | P20: =O20*'F.EE.'!C5 -> 0 | Q20: =N20-P20 -> 0 | R20: =O20-P20 -> 0 | S20: =(K20*J20)-(P20+R20) -> 0 | T20: =H20*L20 -> 0 | U20: =J20*L20 -> 0 | V20: =U20*'F.EE.'!F5 -> 0 | W20: =T20-V20 -> 0 | X20: =U20-V20 -> 0 | Y20: =W20+V20+Q20+P20-(H20*K20+H20*L20) -> 0 | Z20: =H20*M20 -> 0 | AA20: =J20*M20 -> 0 | AB20: 0 | AC20: =AA20*'F.EE.'!I5 -> 0 | AD20: ='F.Dist.'!J6 -> 0 | AE20: =(C20*AD20*M20)+Z20-AC20 -> 0 | AF20: =(AA20-AC20)*(1-0.0067) -> 0 | AG20: =(AE20+W20+Q20)+(P20+V20+AC20)-(H20+AD20*C20*M20) -> 0 | AH20: ='F.Dist.'!K6 -> 1 | AI20: ='F.Dist.'!L6 -> 0 | AJ20: ='F.Dist.'!M6 -> 0 | AK20: ='F.Dist.'!O6 -> 1 | AL20: ='F.Dist.'!P6 -> 0 | AM20: ='F.Dist.'!Q6 -> 0 | AN20: =AE20*AH20+W20*AK20 -> 0 | AO20: 0 | AP20: =AO20*'F.EE.'!L5 -> 0 | AQ20: =AO20*'F.EE.'!S5 -> 0 | AR20: =AO20*'F.EE.'!T5 -> 0 | AS20: =AO20*'F.EE.'!U5 -> 0 | AT20: =AN20-AP20-AQ20*(28/44)-AR20-AS20*(14/46) -> 0 | AU20: =AO20-AP20-AQ20*(28/44)-AR20-AS20*(14/46) -> 0 | AV20: =(AT20+AP20+AR20+AQ20*28/44+AS20*14/46)-AN20 -> 0 | AW20: ='F.Dist.'!S6 -> 1 | AX20: ='F.Dist.'!T6 -> 0 | AY20: =AT20*AW20+AE20*AI20+W20*AL20 -> 0 | AZ20: 0 | BA20: =AZ20*'F.EE.'!O5 -> 0 | BB20: =AY20-BA20 -> 0 | BC20: =AZ20-BA20 -> 0 | BD20: =BB20+Q20 -> 0 | BE20: 0 | BF20: 0 | BG20: 0 | BH20: 0 | BI20: 0 | BJ20: 0 | BK20: 0 | BL20: =SUM(BH20:BK20) -> 0 | BM20: =BH20*17/14 -> 0 | BN20: =H20+(AD20*C20*M20)-(BF20+BL20+BD20) -> 0
A21: TOTALS | C21: =SUM(C18:C20) -> 0 | E21: =SUM(E18:E20) -> 0 | H21: =SUM(H18:H20) -> 0 | J21: =SUM(J18:J20) -> 0 | N21: =SUM(N18:N20) -> 0 | O21: 0 | P21: 0 | Q21: 0 | R21: 0 | S21: 0 | T21: 0 | U21: 0 | V21: 0 | W21: 0 | X21: 0 | Y21: 0 | Z21: 0 | AA21: 0 | AB21: 0 | AC21: =SUM(AC18:AC20) -> 0 | AD21: =(C18*AD18+C19*AD19+C20*AD20)/C21 ->  | AE21: =SUM(AE18:AE20) -> 0 | AF21: 0 | AG21: =SUM(AG18:AG20) -> 0 | AN21: =SUM(AN18:AN20) -> 0 | AO21: 0 | AP21: 0 | AQ21: 0 | AR21: 0 | AS21: 0 | AT21: 0 | AU21: 0 | AY21: =SUM(AY18:AY20) -> 0 | AZ21: 0 | BA21: 0 | BB21: 0 | BC21: 0 | BD21: =SUM(BD18:BD20) -> 0 | BE21: =SUM(BE18:BE20) -> 0 | BF21: 0 | BG21: 0 | BH21: =SUM(BH18:BH20) -> 0 | BI21: =SUM(BI18:BI20) -> 0 | BJ21: 0 | BK21: 0 | BL21: =SUM(BH21:BK21) -> 0 | BM21: =BH21*17/14 -> 0 | BN21: =SUM(BN18:BN20) -> 0

Sheet F.EE. (hidden)
A1: SPECIE | B1: CAT_AA | C1: GRAZING | F1: YARD_solid | I1: BUILD-solid | L1: STORAGE_solid | O1: APPLIED_ solid | S1: STORAGE_solid
C2: FE_GRAZING | D2: FR_GRAZING | E2: Fec_GRAZING | F2: FE_YARD_solid | G2: FR_YARD_solid | H2: Fec_YARD_solid | I2: FE_BUILD_solid | J2: FR_BUILD_solid | K2: FEc_BUILD_solid | L2: FE_STORAGE_solid | M2: FR_STORAGE_solid | N2: FEc_STORAGE_solid | O2: FE_APPLIED_solid | P2: FR_APPLIED_solid | Q2: FEc_APPLIED_solid | S2: kg N2O | T2: kg N2 | U2: kg NO
A3: AVES CARNE | B3: Broilers | C3: 0.32 | D3: 1 | E3: =C3*D3 -> 0.32 | F3: =I3 -> 0.28 | G3: 1 | H3: =F3*G3 -> 0.28 | I3: 0.28 | J3: =VLOOKUP(E.Datos!J25,'F.EE.'!$B$11:$H$25,7,FALSE) -> 1 | K3: =I3*J3 -> 0.28 | L3: 0.17 | M3: =VLOOKUP(E.Datos!R25,'F.EE.'!$K$11:$O$12,5,FALSE) -> 1 | N3: =L3*M3 -> 0.17 | O3: 0.66 | P3: =VLOOKUP(E.Datos!X25,'F.EE.'!$K$20:$O$24,5,FALSE) -> 1 | Q3: =O3*P3 -> 0.66 | S3: 0.002 | T3: 0.3 | U3: 0.01
A4: AVES CARNE | B4: Pollitas de recría carne | C4: 0.32 | D4: 1 | E4: =C4*D4 -> 0.32 | F4: =I4 -> 0.28 | G4: 1 | H4: =F4*G4 -> 0.28 | I4: 0.28 | J4: =VLOOKUP(E.Datos!J27,'F.EE.'!$B$11:$H$25,7,FALSE) -> 1 | K4: =I4*J4 -> 0.28 | L4: 0.17 | M4: =VLOOKUP(E.Datos!R27,'F.EE.'!$K$11:$O$12,5,FALSE) -> 1 | N4: =L4*M4 -> 0.17 | O4: 0.66 | P4: =VLOOKUP(E.Datos!X27,'F.EE.'!$K$20:$O$24,5,FALSE) -> 1 | Q4: =O4*P4 -> 0.66 | S4: 0.002 | T4: 0.3 | U4: 0.01
A5: AVES CARNE | B5: Gallinas reproductoras carne | C5: 0.32 | D5: 1 | E5: 0.32 | F5: =I5 -> 0.28 | G5: 1 | H5: 0.28 | I5: 0.28 | J5: =VLOOKUP(E.Datos!J29,'F.EE.'!$B$11:$H$25,7,FALSE) -> 1 | K5: =I5*J5 -> 0.28 | L5: 0.17 | M5: =VLOOKUP(E.Datos!R29,'F.EE.'!$K$11:$O$12,5,FALSE) -> 1 | N5: 0.17 | O5: 0.66 | P5: =VLOOKUP(E.Datos!X29,'F.EE.'!$K$20:$O$24,5,FALSE) -> 1 | Q5: 0.66 | S5: 0.002 | T5: 0.3 | U5: 0.01
A8: NH3 REDUCTIONS AND EMISSION FACTORS ACCORDING TO MANAGEMENT TECHNIQUES | F8: BUILD | J8: NH3 REDUCTIONS AND EMISSION FACTORS ACCORDING TO MANAGEMENT TECHNIQUES | O8: STORE
A10: FASE 1: ALOJAMIENTO DE ANIMALES + EVACUACIÓN Y ALMACENAMIENTO DEL ESTIÉRCOL EN LA GRANJA | G10: Coef. Reducción | H10: F.R. | J10: FASE 2. ALMACENAMIENTO DE PURINES | N10: Coef. Reducción | O10: F.R.
A11: Opción 0 | B11: Sistema de jaulas no acondicionadas, estiércol no ventilado debajo | G11: 0 | H11: =1-G11 -> 1 | J11: Opción 0 | K11: Almacén abierto, sin cubrir | N11: 0 | O11: =1-N11 -> 1
A12: Opción A | B12: Sistema de jaulas no acondicionadas, estiércol debajo y secado | G12: 0.3 | H12: 0.7 | J12: Opción A | K12: Almacén cubierto con materiales rígidos o flexibles | N12: 0.8 | O12: =1-N12 -> 0.2
A13: Opción B | B13: Sistema de jaulas no acondicionadas, estiércol evacuado inmediatamente con cinta a almacén cerrado | G13: 0.65 | H13: 0.35
A14: Opción C | B14: Sistema de jaulas acondicionadas con cinta y retirada de estiércol 2 veces a la semana | G14: 0.5 | H14: 0.5
A15: Opción D | B15: Sistema de jaulas acondicionadas con cinta de secado y retirada de estiércol 2 veces a la semana | G15: 0.85 | H15: 0.15
A16: Opción E | B16: Sistema de jaulas acondicionadas con cinta de secado y retirada de estiércol más de 2 veces a la semana | G16: 0.9 | H16: 0.1
A17: Opción F | B17: Sistema de jaulas con sistemas de depuración de aire | G17: 0.8 | H17: 0.2 | J17: NH3 REDUCTIONS AND EMISSION FACTORS ACCORDING TO MANAGEMENT TECHNIQUES | O17: APPLIED
A18: Opción G | B18: Suelo con yacija profunda | G18: 0 | H18: 1
A19: Opción H | B19: Suelo con yacija profunda, ventilación natural y sistema de bebederos sin pérdidas de agua. | G19: 0.25 | H19: 0.75 | J19: FASE 3: APLICACIÓN DEL ESTIERCOL AL CAMPO | N19: Coef. Reducción | O19: F.R.
A20: Opción I | B20: Aviarios con perchas y retirada de estiércol en cinta, sin secado | G20: 0.775 | H20: 0.225 | J20: Opción 0 | K20: Esparcido, sin enterrado | N20: 0 | O20: =1-N20 -> 1
A21: Opción J | B21: Aviarios con perchas y retirada de estiércol en cinta, con secado | G21: 0.875 | H21: 0.125 | J21: Opción A | K21: Esparcido y enterrado de forma inmediata | N21: 0.9 | O21: =1-N21 -> 0.1
A22: Opción K | B22: Suelo con yacija, emparrillado parcial y cintas de evacuación | G22: 0.75 | H22: 0.25 | J22: Opción B | K22: Incorporación al suelo con discos, de forma inmediata | N22: 0.7 | O22: =1-N22 -> 0.3
A23: Opción L | B23: Suelo con yacija con secado forzado | G23: 0.5 | H23: 0.5 | J23: Opción C | K23: Enterrado en menos de 4 horas desde el esparcido | N23: 0.55 | O23: =1-N23 -> 0.45
A24: Opción M | B24: Adición de sulfato de aluminio a la yacija | G24: 0.7 | H24: 0.3 | J24: Opción D | K24: Enterrado en más de 4 horas desde el esparcido | N24: 0 | O24: =1-N24 -> 1
A25: Opción N | B25: Sistemas depuración de aire | G25: 0.8 | H25: 0.2

Sheet F.Dist. (hidden)
A1: SPECIE | B1: CAT_AA | C1: x_TAN-T | D1: GROSS PROTEIN | E1: DISTRIBUTION_Excrete | H1: DISTRIBUTION_BUILD | J1: N_Straw | K1: DISTRIBUTION_exBUILD_solid | O1: DISTRIBUTION_YARD_solid | S1: DISTRIBUTION_STORE_solid
D2: SÍ | E2: x_GRAZ | F2: x_YARD | G2: x_BUILD | H2: X_BUILD_solid | I2: X_BUILD_slurry | K2: x_exBUILD_solid-to-STORE_solid | L2: x_exBUILD_solid-to-FIELD_solid | M2: x_exBUILD_solid-to-OTHERS | N2: CHECK | O2: x_YARD-to-STORE_solid | P2: x_YARD-to-FIELD_solid | Q2: x_YARD-to-OTHERS | R2: CHECK | S2: x_STORE_solid-to-FIELD_solid | T2: x_STORE_solid-to-OTHERS
C3: kg N-TAN/PP | D3: NO | J3: kg N / PP
A4: AVES CARNE | B4: Broilers | C4: =Calculos!I4 -> 0 | D4: =E.Datos!H25 -> SÍ | E4: 0 | F4: 0 | G4: =1-E4-F4 -> 1 | H4: 1 | I4: =1-H4 -> 0 | J4: =IF(E.Datos!E25=0,0,(E.Datos!L25/Calculos!E4)*J19) -> 0 | K4: =IF(E.Datos!N25=Instrucciones!I48,1,0) -> 0 | L4: =IF(E.Datos!N25=Instrucciones!I49,1,0) -> 0 | M4: =IF(E.Datos!N25=Instrucciones!I50,1,0) -> 1 | N4: =SUM(K4:M4) -> 1 | O4: =IF(E.Datos!P25=Instrucciones!I48,1,0) -> 0 | P4: =IF(E.Datos!P25=Instrucciones!I49,1,0) -> 0 | Q4: =IF(E.Datos!P25=Instrucciones!I50,1,0) -> 1 | R4: =SUM(O4:Q4) -> 1 | S4: =IF(E.Datos!V25=Instrucciones!I49,1,0) -> 0 | T4: =IF(E.Datos!V25=Instrucciones!I50,1,0) -> 1
A5: AVES CARNE | B5: Pollitas de recría carne | C5: =Calculos!I5 -> 0 | D5: =E.Datos!H27 -> SÍ | E5: 0 | F5: 0 | G5: =1-E5-F5 -> 1 | H5: 1 | I5: 0 | J5: =IF(E.Datos!E27=0,0,(E.Datos!L27/Calculos!E5)*J19) -> 0 | K5: =IF(E.Datos!N27=Instrucciones!I48,1,0) -> 1 | L5: =IF(E.Datos!N27=Instrucciones!I49,1,0) -> 0 | M5: =IF(E.Datos!N27=Instrucciones!I50,1,0) -> 0 | N5: =SUM(K5:M5) -> 1 | O5: =IF(E.Datos!P27=Instrucciones!I48,1,0) -> 1 | P5: =IF(E.Datos!P27=Instrucciones!I49,1,0) -> 0 | Q5: =IF(E.Datos!P27=Instrucciones!I50,1,0) -> 0 | R5: =SUM(O5:Q5) -> 1 | S5: =IF(E.Datos!V27=Instrucciones!I49,1,0) -> 1 | T5: =IF(E.Datos!V27=Instrucciones!I50,1,0) -> 0
A6: AVES CARNE | B6: Gallinas reproductoras carne | C6: =Calculos!I6 -> 0 | D6: =E.Datos!H29 -> SÍ | E6: 0 | F6: 0 | G6: 1 | H6: 1 | I6: 0 | J6: =IF(E.Datos!E29=0,0,(E.Datos!L29/Calculos!E6)*J19) -> 0 | K6: =IF(E.Datos!N29=Instrucciones!I48,1,0) -> 1 | L6: =IF(E.Datos!N29=Instrucciones!I49,1,0) -> 0 | M6: =IF(E.Datos!N29=Instrucciones!I50,1,0) -> 0 | N6: =SUM(K6:M6) -> 1 | O6: =IF(E.Datos!P29=Instrucciones!I48,1,0) -> 1 | P6: =IF(E.Datos!P29=Instrucciones!I49,1,0) -> 0 | Q6: =IF(E.Datos!P29=Instrucciones!I50,1,0) -> 0 | R6: =SUM(O6:Q6) -> 1 | S6: =IF(E.Datos!V29=Instrucciones!I49,1,0) -> 1 | T6: =IF(E.Datos!V29=Instrucciones!I50,1,0) -> 0
D10: Datos obtenidos por Com. Pers. MAPAMA: | H10: Min | I10: Max | J10: Media
D11: Densidad (kg pollo/m2) | H11: 33 | I11: 42 | J11: =AVERAGE(33,42) -> 37.5
D12: Densidad (pollo/m2) | H12: =H11/2.3 -> 14.34782609 | I12: =I11/2.3 -> 18.26086957 | J12: =AVERAGE(H12:I12) -> 16.30434783
D13: Superficie (m2/pollo) | H13: =H12^-1 -> 0.0696969697 | I13: =I12^-1 -> 0.05476190476 | J13: =AVERAGE(H13:I13) -> 0.06222943723
D14: Superficie (cm2/pollo) | H14: =H13*10000 -> 696.969697 | I14: =I13*10000 -> 547.6190476 | J14: =AVERAGE(H14:I14) -> 622.2943723
D15: Volumen (cm3/pollo) | H15: =4*H14 -> 2787.878788 | I15: =4*I14 -> 2190.47619 | J15: 2489.177489
D16: Datos de consulta bibliográfica:
D17: Densidad paja cereal (kg/m3) | H17: 125 | I17: 165 | J17: 145
D18: Densidad paja cereal (kg/cm3) | H18: =H17/1000000 -> 0.000125 | I18: =I17/1000000 -> 0.000165 | J18: 0.000145
D19: Contenido N en paja cereal (kg/kg) | H19: =0.3/100 -> 0.003 | I19: =1.1/100 -> 0.011 | J19: 0.007
E21: La Directiva 1999/74/CE establece unos mínimos de
F22: 250 cm2 de yacija por gallina
F23: 550 cm2 de jaula no acondicionada por gallina
F24: 750 cm2 de jaula acondicionada por gallina
